bitfinex-derivatives/quotes_BNBF0:USTF0_20250401
["timestamp","ask_amount","ask_price","bid_price","bid_amount"]
[1743492737681,0.30141092,610.24,608.54,2.49265547]
[1743492737882,0.28553026,610.03,608.54,2.49265547]
[1743492738083,0.32773453,610.25,608.54,2.49265547]
[1743492738284,0.30141306,610.24,608.54,2.49265547]
[1743492738485,0.28553026,610.02,608.54,2.49265547]
[1743492738685,0.32773453,610.25,608.54,2.49265547]
[1743492738882,0.30141356,610.24,608.54,2.49265547]
[1743492739085,0.58694382,610.24,608.54,2.49265547]
[1743492739286,0.30141356,610.23,608.54,2.49265547]
[1743492741488,0.58695595,610.22,608.54,2.49265547]
[1743492741789,0.30142569,610.21,608.54,2.49265547]
[1743492744287,0.30142569,610.24,608.54,2.49265547]
[1743492744492,0.2855326,610.2,608.54,2.49265547]
[1743492744690,0.3014273,610.19,608.54,2.49265547]
[1743492747394,0.58695522,610.18,608.54,2.49265547]
[1743492747592,0.3014273,610.17,608.54,2.49265547]
[1743492747792,0.28552792,610.18,608.54,2.49265547]
[1743492747994,0.30141337,610.17,608.54,2.49265547]
[1743492749392,0.28552792,610.18,608.54,2.49265547]
[1743492749588,0.30141355,610.17,608.54,2.49265547]
[1743492750489,0.58694147,610.16,608.54,2.49265547]
[1743492750794,0.30141355,610.15,608.54,2.49265547]
[1743492753289,0.30141355,610.24,608.54,2.49265547]
[1743492753492,0.28553026,610.14,608.54,2.49265547]
[1743492753693,0.30141355,610.13,608.54,2.49265547]
[1743492754090,0.28551972,610.13,608.54,2.49265547]
[1743492754297,0.30141337,610.12,608.54,2.49265547]
[1743492755695,0.28551972,610.13,608.54,2.49265547]
[1743492755890,0.30141337,610.12,608.54,2.49265547]
[1743492756392,0.5869448,610.11,608.54,2.49265547]
[1743492756593,0.30141337,610.1,608.54,2.49265547]
[1743492757497,0.30141337,610.09,608.54,2.49265547]
[1743492757797,0.30141337,610.08,608.54,2.49265547]
[1743492757998,0.30141337,610.1,608.54,2.49265547]
[1743492758199,0.30141337,610.09,608.54,2.49265547]
[1743492758393,0.30141337,610.1,608.54,2.49265547]
[1743492758592,0.30141337,610.09,608.54,2.49265547]
[1743492758894,0.28553143,610.11,608.54,2.49265547]
[1743492759198,0.30141359,610.1,608.54,2.49265547]
[1743492759498,0.30141359,610.09,608.54,2.49265547]
[1743492759697,0.30141359,610.08,608.54,2.49265547]
[1743492759900,0.30141359,610.07,608.54,2.49265547]
[1743492760098,0.30141359,610.06,608.54,2.49265547]
[1743492760396,0.30141359,610.05,608.54,2.49265547]
[1743492760597,0.30141359,610.04,608.54,2.49265547]
[1743492760798,0.30141359,610.09,608.54,2.49265547]
[1743492762402,0.58696494,610.08,608.54,2.49265547]
[1743492762597,0.30141359,610.07,608.54,2.49265547]
[1743492765398,0.58698612,610.06,608.54,2.49265547]
[1743492765702,0.30143243,610.05,608.54,2.49265547]
[1743492766905,0.28555369,610.06,608.54,2.49265547]
[1743492767205,0.30143204,610.05,608.54,2.49265547]
[1743492767709,0.30143204,610.04,608.54,2.49265547]
[1743492767910,0.28555369,610.06,608.54,2.49265547]
[1743492771106,0.32773453,610.25,608.54,2.49265547]
[1743492771303,0.30142774,610.24,608.54,2.49265547]
[1743492771808,0.58694512,610.24,608.54,2.49265547]
[1743492772005,0.30142774,610.23,608.54,2.49265547]
[1743492774512,0.28553495,610.22,608.54,2.49265547]
[1743492774812,0.30142774,610.21,608.54,2.49265547]
[1743492777313,0.30142774,610.24,608.54,2.49265547]
[1743492777513,0.28553729,610.2,608.54,2.49265547]
[1743492777713,0.30142774,610.19,608.54,2.49265547]
[1743492778415,0.28553729,610.2,608.54,2.49265547]
[1743492782216,0.27978949,610.2,608.54,2.49265547]
[1743492783122,0.32773453,610.25,608.54,2.49265547]
[1743492783516,0.28551738,610.19,608.54,2.49265547]
[1743492788215,0.30138431,610.18,608.54,2.49265547]
[1743492789121,0.28551738,610.19,608.54,2.49265547]
[1743492789323,0.30138448,610.18,608.54,2.49265547]
[1743492792320,0.30138448,610.24,608.54,2.49265547]
[1743492792519,0.28551035,610.17,608.54,2.49265547]
[1743492795124,0.32773453,610.25,608.54,2.49265547]
[1743492795321,0.30137648,610.24,608.54,2.49265547]
[1743492795521,0.28550098,610.16,608.54,2.49265547]
[1743492795826,0.32773453,610.25,608.54,2.49265547]
[1743492796127,0.28550098,610.15,608.54,2.49265547]
[1743492796426,0.32773453,610.25,608.54,2.49265547]
[1743492796730,0.28548224,610.14,608.54,2.49265547]
[1743492796922,2.50883066,610.59,608.54,2.49265547]
[1743492797124,0.30135533,610.58,608.54,2.49265547]
[1743492797328,0.28544478,610.13,608.54,2.49265547]
[1743492797528,2.83638269,610.59,608.54,2.49265547]
[1743492797724,0.30135108,610.58,608.54,2.49265547]
[1743492797926,0.28544595,610.12,608.54,4.36420567]
[1743492798124,2.83638269,610.59,608.54,4.36420567]
[1743492798327,0.30135354,610.58,608.55,2.78560307]
[1743492798628,0.28544595,610.11,608.65,0.32859607]
[1743492798829,0.32755203,610.59,608.65,0.32859607]
[1743492799128,0.28544361,610.57,608.65,0.32859607]
[1743492799326,0.30135328,610.56,608.65,0.32859607]
[1743492800725,0.30134561,610.55,608.65,0.32859607]
[1743492800924,0.28544361,610.57,608.65,0.32859607]
[1743492800925,0.30134561,610.56,608.65,0.32859607]
[1743492801124,0.30134561,610.55,608.65,0.32859607]
[1743492801327,0.30134561,610.54,608.65,0.32859607]
[1743492801627,0.30134561,610.53,608.65,0.32859607]
[1743492801829,0.30134561,610.52,608.65,0.32859607]
[1743492802031,0.30134561,610.54,608.65,1.21259607]
[1743492802331,0.30133871,610.53,608.65,1.73159607]
[1743492802527,0.30133871,610.52,608.65,1.73159607]
[1743492802727,0.30133871,610.51,608.65,1.73159607]
[1743492802927,0.28548224,610.55,608.65,1.73159607]
[1743492802928,0.30133871,610.54,608.65,1.73159607]
[1743492803132,0.30133871,610.53,608.65,1.73159607]
[1743492803329,0.30133871,610.54,608.65,1.73159607]
[1743492803529,0.30133871,610.53,608.65,1.73159607]
[1743492803829,0.30133871,610.52,608.65,1.73159607]
[1743492804026,0.30133871,610.51,608.65,1.73159607]
[1743492804230,0.30133871,610.54,608.65,1.73159607]
[1743492804432,0.28542254,610.51,608.65,1.73159607]
[1743492804631,0.30133871,610.5,608.65,1.73159607]
[1743492807440,0.58676528,610.49,608.65,1.73159607]
[1743492807632,0.30133806,610.48,608.65,1.73159607]
[1743492810445,0.58676762,610.47,608.65,1.73159607]
[1743492810646,0.30133806,610.46,608.65,1.73159607]
[1743492813349,0.30133806,610.55,608.65,1.73159607]
[1743492813546,0.28541785,610.45,608.65,1.73159607]
[1743492813743,0.30133806,610.44,608.65,1.73159607]
[1743492813949,0.30133806,610.55,608.65,1.73159607]
[1743492814146,0.28540966,610.44,608.65,1.73159607]
[1743492814347,0.30133806,610.43,608.65,2.49159607]
[1743492814549,0.30133806,610.42,608.65,2.49159607]
[1743492814750,0.30133806,610.41,608.65,2.49159607]
[1743492814948,0.30133806,610.4,608.65,2.49159607]
[1743492815249,0.30133806,610.39,608.65,2.49159607]
[1743492815544,0.30133806,610.38,608.65,2.49159607]
[1743492815749,0.30133806,610.37,608.65,2.49159607]
[1743492816051,0.30133806,610.36,608.65,2.49159607]
[1743492816252,0.30133806,610.35,608.65,2.49159607]
[1743492816545,0.30132403,610.34,608.65,2.49159607]
[1743492816745,0.30132325,610.33,608.65,2.49159607]
[1743492816948,0.30132325,610.32,608.65,2.49159607]
[1743492817149,0.30132325,610.35,608.65,2.49159607]
[1743492817452,0.30132325,610.34,608.65,2.49159607]
[1743492817652,0.30132325,610.35,608.65,2.49159607]
[1743492817849,0.30132325,610.34,608.65,2.49159607]
[1743492818153,0.30132325,610.33,608.65,2.49159607]
[1743492818353,0.30132411,610.32,608.65,2.49159607]
[1743492818553,0.30132411,610.31,608.65,2.49159607]
[1743492818746,0.30132411,610.35,608.65,2.49159607]
[1743492818951,0.30132411,610.34,608.65,2.49159607]
[1743492819153,0.30132411,610.35,608.65,2.49159607]
[1743492819354,0.30132411,610.34,608.65,2.49159607]
[1743492819653,0.58675484,610.33,608.65,2.49159607]
[1743492819955,0.30132411,610.32,608.65,2.49159607]
[1743492822554,0.28544595,610.31,608.65,2.49159607]
[1743492825155,0.32755203,610.59,608.65,2.49159607]
[1743492825349,0.30133855,610.58,608.65,2.49159607]
[1743492825552,0.28541551,610.3,608.65,2.49159607]
[1743492825755,0.32755203,610.59,608.65,2.49159607]
[1743492825950,0.30133625,610.58,608.65,2.49159607]
[1743492826154,0.28541668,610.29,608.65,2.49159607]
[1743492826450,0.32755203,610.59,608.65,2.49159607]
[1743492826756,0.28541668,610.28,608.65,2.49159607]
[1743492827157,0.32755203,610.59,608.65,2.49159607]
[1743492827359,0.28541551,610.27,608.65,2.49159607]
[1743492827853,0.32755203,610.59,608.65,2.49159607]
[1743492828057,0.28541551,610.26,608.65,2.49159607]
[1743492828357,0.32755203,610.59,608.65,2.49159607]
[1743492828558,0.28541668,610.25,608.65,2.49159607]
[1743492828860,0.32755203,610.59,608.65,2.49159607]
[1743492829059,0.30133839,610.58,608.65,2.49159607]
[1743492829259,0.28541668,610.24,608.65,2.49159607]
[1743492829456,0.32755203,610.59,608.65,2.49159607]
[1743492829854,0.28541668,610.23,608.65,2.49159607]
[1743492830054,0.32755203,610.59,608.65,2.49159607]
[1743492830262,0.30133714,610.58,608.65,2.49159607]
[1743492830461,0.28541668,610.22,608.65,2.49159607]
[1743492830655,0.32755203,610.59,608.65,2.49159607]
[1743492830856,0.30133839,610.58,608.65,2.49159607]
[1743492831053,0.28541668,610.21,608.65,2.49159607]
[1743492831362,0.32755203,610.59,608.65,2.49159607]
[1743492831560,0.28541668,610.2,608.65,2.49159607]
[1743492831952,0.32755203,610.59,608.65,2.49159607]
[1743492832155,0.28545063,610.19,608.65,2.49159607]
[1743492832560,0.32755203,610.59,608.65,2.49159607]
[1743492832863,0.2854518,610.18,608.65,2.49159607]
[1743492833062,0.32755203,610.59,608.65,2.49159607]
[1743492833263,0.30138815,610.58,608.65,2.49159607]
[1743492833564,0.2854518,610.17,608.65,2.49159607]
[1743492833764,0.32756276,610.57,608.65,2.49159607]
[1743492833959,0.30138939,610.56,608.65,2.49159607]
[1743492834162,0.32757349,610.55,608.65,2.49159607]
[1743492834358,0.30139044,610.54,608.65,2.49159607]
[1743492834558,0.32758423,610.53,608.65,2.49159607]
[1743492834758,0.30139044,610.52,608.65,2.49159607]
[1743492834959,0.32759496,610.51,608.65,2.49159607]
[1743492835159,0.30139044,610.5,608.65,2.49159607]
[1743492835964,0.30138927,610.49,608.65,2.49159607]
[1743492836163,0.32759496,610.51,608.65,2.49159607]
[1743492836164,0.30138927,610.5,608.65,2.49159607]
[1743492836365,0.30138927,610.49,608.65,2.49159607]
[1743492836766,0.30138927,610.48,608.65,2.49159607]
[1743492836964,0.30138927,610.47,608.65,2.49159607]
[1743492837165,0.30138927,610.46,608.65,2.49159607]
[1743492837367,0.28546,610.46,608.65,2.49159607]
[1743492837561,0.30138927,610.45,608.65,2.49159607]
[1743492840269,0.30138927,610.5,608.65,2.49159607]
[1743492840568,0.28546585,610.44,608.65,2.49159607]
[1743492840770,0.30138927,610.43,608.65,2.49159607]
[1743492841971,0.30139169,610.42,608.65,2.49159607]
[1743492842166,0.30139169,610.43,608.65,2.49159607]
[1743492842363,0.30139169,610.42,608.65,2.49159607]
[1743492842567,0.30139169,610.43,608.65,2.49159607]
[1743492843266,0.30139169,610.5,608.65,2.49159607]
[1743492843466,0.58685988,610.42,608.65,2.49159607]
[1743492843667,0.30139169,610.41,608.65,2.49159607]
[1743492843866,0.30139169,610.4,608.65,2.49159607]
[1743492844170,0.30139169,610.39,608.65,2.49159607]
[1743492844369,0.30139169,610.38,608.65,2.49159607]
[1743492844665,0.30139169,610.37,608.65,2.49159607]
[1743492844869,0.30139169,610.36,608.65,2.49159607]
[1743492845068,0.30139169,610.4,608.65,2.49159607]
[1743492846464,0.28547171,610.39,608.65,2.49159607]
[1743492846869,0.30139185,610.38,608.65,2.49159607]
[1743492852171,0.30139185,610.37,608.65,2.49159607]
[1743492852470,0.30139185,610.36,608.65,2.49159607]
[1743492852769,0.30139185,610.35,608.65,2.49159607]
[1743492852969,2.50883066,610.31,608.65,2.49159607]
[1743492853171,0.30139185,610.3,608.65,2.49159607]
[1743492855673,0.28550449,610.29,608.65,2.49159607]
[1743492855869,0.30139185,610.28,608.65,2.49159607]
[1743492856471,0.30143471,610.27,608.65,2.49159607]
[1743492856671,0.30143471,610.26,608.65,2.49159607]
[1743492856873,0.30143471,610.25,608.65,2.49159607]
[1743492857069,0.30143471,610.28,608.65,2.49159607]
[1743492857372,0.30143471,610.27,608.65,2.49159607]
[1743492857567,0.30143471,610.28,608.65,2.49159607]
[1743492857774,0.30143471,610.27,608.65,2.49159607]
[1743492857971,0.30143471,610.28,608.65,2.49159607]
[1743492858275,0.30143471,610.27,608.65,2.49159607]
[1743492858474,0.28550684,610.27,608.65,2.49159607]
[1743492858675,0.30143471,610.26,608.65,2.49159607]
[1743492861277,0.30143964,610.25,608.65,2.49159607]
[1743492861478,0.28550918,610.25,608.65,2.49159607]
[1743492861674,0.30143964,610.24,608.65,2.49159607]
[1743492862275,0.28550918,610.25,608.65,2.49159607]
[1743492867280,2.50883066,610.77,608.65,2.49159607]
[1743492867475,0.3014353,610.5,608.65,2.49159607]
[1743492867676,0.2854881,610.24,608.65,2.49159607]
[1743492867879,0.32760569,610.49,608.65,2.49159607]
[1743492868182,0.3014371,610.48,608.65,2.49159607]
[1743492868380,0.28549044,610.23,608.65,2.49159607]
[1743492868680,0.32761642,610.47,608.65,2.49159607]
[1743492868877,0.28549278,610.22,608.65,2.49159607]
[1743492869279,0.32761642,610.47,608.65,2.49159607]
[1743492869476,0.28549278,610.21,608.65,2.49159607]
[1743492869781,0.32761642,610.47,608.65,2.49159607]
[1743492869981,0.30143627,610.46,608.65,2.49159607]
[1743492870181,0.32762716,610.45,608.65,2.49159607]
[1743492870382,0.30143627,610.44,608.65,2.49159607]
[1743492870579,0.32763789,610.43,608.65,2.49159607]
[1743492870781,0.30143627,610.42,608.65,2.49159607]
[1743492870976,0.32764862,610.41,608.65,2.49159607]
[1743492871178,0.30143627,610.4,608.65,2.49159607]
[1743492871381,0.32765936,610.39,608.65,2.49159607]
[1743492871581,0.30143627,610.38,608.65,2.49159607]
[1743492872587,0.32765936,610.39,608.65,2.49159607]
[1743492872779,0.30143501,610.38,608.65,2.49159607]
[1743492873482,0.28550215,610.37,608.65,2.49159607]
[1743492873779,0.30143501,610.36,608.65,2.49159607]
[1743492875784,0.28550215,610.37,608.65,2.49159607]
[1743492875979,0.30144405,610.36,608.65,2.49159607]
[1743492876380,0.30144405,610.38,608.65,2.49159607]
[1743492876580,0.30144405,610.37,608.65,2.49159607]
[1743492876783,0.28550449,610.35,608.65,2.49159607]
[1743492877082,0.30144405,610.34,608.65,2.49159607]
[1743492877478,0.30144288,610.33,608.65,2.49159607]
[1743492877679,0.30144288,610.34,608.65,2.49159607]
[1743492877985,0.30144288,610.33,608.65,2.49159607]
[1743492878181,0.30144288,610.34,608.65,2.49159607]
[1743492880590,0.28550449,610.35,608.65,2.49159607]
[1743492880784,0.30144418,610.34,608.65,2.49159607]
[1743492882491,0.30144418,610.33,608.65,2.49159607]
[1743492882686,0.30144418,610.32,608.65,2.49159607]
[1743492884486,2.81027484,610.32,608.65,2.49159607]
[1743492884691,0.30144418,610.31,608.65,2.49159607]
[1743492885491,0.28551269,610.3,608.65,2.49159607]
[1743492885794,0.30144418,610.29,608.65,2.49159607]
[1743492886998,0.28551269,610.3,608.65,2.49159607]
[1743492887196,0.30143986,610.29,608.65,2.49159607]
[1743492887899,0.28551269,610.3,608.65,2.49159607]
[1743492888095,0.30144063,610.29,608.65,2.49159607]
[1743492888493,0.30144063,610.28,608.65,2.49159607]
[1743492888695,0.28551503,610.28,608.65,2.49159607]
[1743492888998,0.30144063,610.27,608.65,2.49159607]
[1743492890395,0.30144295,610.26,608.65,2.49159607]
[1743492890594,0.30144295,610.27,608.65,2.49159607]
[1743492890795,0.30144295,610.26,608.65,2.49159607]
[1743492890996,0.30144295,610.25,608.65,2.49159607]
[1743492891201,0.30144295,610.27,608.65,2.49159607]
[1743492891401,0.30144295,610.26,608.65,2.49159607]
[1743492891596,0.30144295,610.25,608.65,2.49159607]
[1743492891801,0.30144295,610.27,608.65,2.49159607]
[1743492892003,0.30144295,610.26,608.65,2.49159607]
[1743492892302,0.30144295,610.25,608.65,2.49159607]
[1743492892502,0.30144295,610.24,608.65,2.49159607]
[1743492892697,0.30144295,610.27,608.65,2.49159607]
[1743492892904,0.30144295,610.26,608.65,2.49159607]
[1743492893100,0.30144295,610.27,608.65,2.49159607]
[1743492893299,0.30144295,610.26,608.65,2.49159607]
[1743492893499,0.28551503,610.28,608.65,2.49159607]
[1743492893698,0.30144028,610.27,608.65,2.49159607]
[1743492894499,0.58695766,610.26,608.65,2.49159607]
[1743492894701,0.30144028,610.25,608.65,2.49159607]
[1743492896805,2.50883066,610.19,608.65,2.49159607]
[1743492897001,0.30144002,610.18,608.65,2.49159607]
[1743492897604,0.28552792,610.17,608.65,2.49159607]
[1743492897801,0.30144002,610.16,608.65,2.49159607]
[1743492900009,2.81027068,610.16,608.65,2.49159607]
[1743492900208,0.3014409,610.15,608.65,2.49159607]
[1743492900609,0.28553143,610.15,608.65,2.49159607]
[1743492903306,0.32766473,610.38,608.65,2.49159607]
[1743492903507,0.28549161,610.14,608.65,2.49159607]
[1743492903909,0.32766473,610.38,608.65,2.49159607]
[1743492904110,0.28549278,610.13,608.65,2.49159607]
[1743492904508,0.32766473,610.38,608.65,2.49159607]
[1743492904812,0.28549278,610.12,608.65,2.49159607]
[1743492905007,0.32766473,610.38,608.65,2.49159607]
[1743492905209,0.3014258,610.37,608.65,2.49159607]
[1743492905404,0.28549278,610.11,608.65,2.49159607]
[1743492905609,0.32766473,610.38,608.65,2.49159607]
[1743492905811,0.3014262,610.37,608.65,2.49159607]
[1743492906108,0.28549278,610.1,608.65,2.49159607]
[1743492906307,0.32766473,610.38,608.65,2.49159607]
[1743492906512,0.28549161,610.36,608.65,2.49159607]
[1743492906812,0.30142647,610.35,608.65,2.49159607]
[1743492907110,0.28549161,610.36,608.65,2.49159607]
[1743492909310,0.32766473,610.38,608.65,2.49159607]
[1743492909508,0.28549161,610.35,608.65,2.49159607]
[1743492909714,0.30142785,610.34,608.65,2.49159607]
[1743492909908,0.30142785,610.33,608.65,2.49159607]
[1743492910108,0.30142785,610.34,608.65,2.49159607]
[1743492910313,0.30142785,610.33,608.65,2.49159607]
[1743492910513,2.50883066,610.18,608.65,2.49159607]
[1743492910713,0.30142785,610.17,608.65,2.49159607]
[1743492910909,0.30144205,610.16,608.65,2.49159607]
[1743492911114,0.30144205,610.17,608.65,2.49159607]
[1743492911415,0.30144205,610.16,608.65,2.49159607]
[1743492911616,0.30144205,610.15,608.65,2.49159607]
[1743492911811,0.30144205,610.14,608.65,2.49159607]
[1743492912015,0.30144205,610.17,608.65,2.49159607]
[1743492912216,0.30144205,610.16,608.65,2.49159607]
[1743492912410,0.30144149,610.15,608.65,2.49159607]
[1743492914315,0.30144149,610.15,608.65,0.32859607]
[1743492915617,0.58699401,610.14,608.65,0.32859607]
[1743492915816,0.30144149,610.13,608.65,0.32859607]
[1743492917017,0.30144149,610.13,608.65,1.08759607]
[1743492917610,0.30144149,610.13,608.65,1.97259607]
[1743492917911,0.30144149,610.13,608.65,2.49159607]
[1743492918317,0.30144149,610.35,608.65,2.49159607]
[1743492918516,0.28551035,610.12,608.65,2.49159607]
[1743492918716,0.30144149,610.11,608.65,2.49159607]
[1743492919019,0.28548693,610.11,608.65,2.49159607]
[1743492920417,0.3014242,610.1,608.65,2.49159607]
[1743492920821,0.28548693,610.11,608.65,2.49159607]
[1743492921224,0.30142447,610.1,608.65,2.49159607]
[1743492921523,0.30142447,610.09,608.65,2.49159607]
[1743492922623,0.30142447,610.08,608.65,2.49159607]
[1743492922818,0.30142447,610.09,608.65,2.49159607]
[1743492923023,0.30142447,610.08,608.65,2.49159607]
[1743492923221,0.30142447,610.09,608.65,2.49159607]
[1743492923419,0.30142447,610.08,608.65,2.49159607]
[1743492923621,0.28548459,610.1,608.65,2.49159607]
[1743492923824,0.3014242,610.09,608.65,2.49159607]
[1743492924420,0.28551503,610.08,608.65,2.49159607]
[1743492927323,2.50883066,610.29,608.65,2.49159607]
[1743492927527,0.28544361,610.07,608.65,2.49159607]
[1743492927728,2.50883066,610.64,608.65,2.49159607]
[1743492927930,0.30127453,610.63,608.65,2.49159607]
[1743492928131,0.28544361,610.06,608.65,2.49159607]
[1743492928435,2.50883066,610.64,608.65,2.49159607]
[1743492928735,0.28540381,610.05,608.65,2.49159607]
[1743492929125,2.50883066,610.86,608.65,2.49159607]
[1743492929329,0.28540381,610.04,608.65,2.49159607]
[1743492929725,0.32741262,610.85,608.65,2.49159607]
[1743492929928,0.28537806,610.03,608.65,2.49159607]
[1743492930329,0.32741262,610.85,608.65,2.49159607]
[1743492930533,0.28537923,610.02,608.65,2.49159607]
[1743492930933,0.32741262,610.85,608.65,2.49159607]
[1743492931130,0.28537806,610.01,608.65,2.49159607]
[1743492931532,0.32741262,610.85,608.65,2.49159607]
[1743492931732,0.28537806,610.0,608.65,2.49159607]
[1743492932233,0.32741262,610.85,608.65,2.49159607]
[1743492932430,0.28537806,609.99,608.65,2.49159607]
[1743492932635,0.30127529,610.84,608.65,2.49159607]
[1743492932835,0.32742334,610.83,608.65,2.49159607]
[1743492933028,0.28537923,609.98,608.65,2.49159607]
[1743492933232,0.32742334,610.83,608.65,2.49159607]
[1743492933429,0.30127502,610.82,608.65,2.49159607]
[1743492933633,0.28538157,609.97,608.65,2.49159607]
[1743492933834,0.32743406,610.81,608.65,2.49159607]
[1743492934035,0.30127483,610.8,608.65,2.49159607]
[1743492934235,0.28538275,609.96,608.65,2.49159607]
[1743492934438,0.32744478,610.79,608.65,2.49159607]
[1743492934633,0.30127779,610.78,608.65,2.49159607]
[1743492934832,0.28538509,609.95,608.65,2.49159607]
[1743492935036,0.3274555,610.77,608.65,2.49159607]
[1743492935235,0.30127779,610.76,608.65,2.49159607]
[1743492935436,0.28538743,609.94,608.65,2.49159607]
[1743492935833,0.32746623,610.75,608.65,2.49159607]
[1743492936032,0.28538977,609.93,608.65,2.49159607]
[1743492936536,0.28539094,609.92,608.65,2.49159607]
[1743492939337,0.32746623,610.75,608.65,2.49159607]
[1743492939538,0.2853804,609.91,608.65,2.49159607]
[1743492939737,0.32746623,610.75,608.65,2.49159607]
[1743492940037,0.28538157,609.91,608.65,2.49159607]
[1743492940433,0.32746623,610.75,608.65,2.49159607]
[1743492940633,0.28538157,609.91,608.65,2.49159607]
[1743492941041,0.32746623,610.75,608.65,2.49159607]
[1743492941236,0.2853804,609.91,608.65,2.49159607]
[1743492941637,0.32746623,610.75,608.65,2.49159607]
[1743492941840,0.2853804,609.91,608.65,2.49159607]
[1743492942239,0.32746623,610.75,608.65,2.49159607]
[1743492942438,0.30129569,610.74,608.65,2.49159607]
[1743492942639,0.28538977,609.9,608.65,2.49159607]
[1743492942836,0.32747695,610.73,608.65,2.49159607]
[1743492943042,0.30129255,610.72,608.65,2.49159607]
[1743492943235,0.32748767,610.71,608.65,2.49159607]
[1743492943436,0.30129255,610.7,608.65,2.49159607]
[1743492943641,0.3274984,610.69,608.65,2.49159607]
[1743492943940,0.30129255,610.68,608.65,2.49159607]
[1743492945536,0.28539679,610.67,608.65,2.49159607]
[1743492945842,0.30129255,610.66,608.65,2.49159607]
[1743492948053,0.28539679,610.67,608.65,2.49159607]
[1743492948247,0.30128778,610.66,608.65,2.49159607]
[1743492948551,0.30128778,610.65,608.65,2.49159607]
[1743492951550,0.30128778,610.68,608.65,2.49159607]
[1743492951753,0.3274984,610.69,608.65,2.49159607]
[1743492951754,0.2854003,610.64,608.65,2.49159607]
[1743492952055,0.30128778,610.63,608.65,2.49159607]
[1743492953755,0.2854003,610.64,608.65,2.49159607]
[1743492954054,0.30127387,610.63,608.65,2.49159607]
[1743492954456,0.30127387,610.68,608.65,2.49159607]
[1743492954654,0.28539328,610.62,608.65,2.49159607]
[1743492954855,0.30127387,610.61,608.65,2.49159607]
[1743492956355,0.28539328,610.62,608.65,2.49159607]
[1743492957257,0.3274984,610.69,608.65,2.49159607]
[1743492957751,0.28537338,610.61,608.65,2.49159607]
[1743492957956,0.3274984,610.69,608.65,2.49159607]
[1743492958553,0.28527279,610.68,608.65,2.49159607]
[1743492960258,0.3274984,610.69,608.65,2.49159607]
[1743492960660,0.28537338,610.67,608.65,2.49159607]
[1743492961354,0.28537338,610.67,608.65,0.32859607]
[1743492963252,0.3274984,610.69,608.65,0.32859607]
[1743492963454,0.28541317,610.66,608.65,0.32859607]
[1743492965063,0.28541317,610.66,608.65,1.08759607]
[1743492965958,0.28541317,610.66,608.65,1.97359607]
[1743492966158,0.3274984,610.69,608.65,1.97359607]
[1743492966664,0.28533946,610.65,608.65,1.97359607]
[1743492972269,2.50883066,611.65,608.65,1.97359607]
[1743492972471,0.32705389,611.52,608.65,1.97359607]
[1743492972765,0.28520733,610.64,608.65,1.97359607]
[1743492972973,0.32705389,611.52,608.65,1.97359607]
[1743492973170,0.30109126,611.51,608.65,1.97359607]
[1743492973369,0.28520149,610.63,608.65,1.97359607]
[1743492973570,0.32706994,611.49,608.65,1.97359607]
[1743492973770,0.30108389,611.48,608.65,1.97359607]
[1743492974071,0.28520499,610.62,608.65,1.97359607]
[1743492974274,0.32708599,611.46,608.65,1.97359607]
[1743492974471,0.2852085,610.61,608.65,1.97359607]
[1743492974864,0.32708599,611.46,608.65,1.97359607]
[1743492975067,0.2852085,610.6,608.65,1.97359607]
[1743492975466,0.32708599,611.46,608.65,1.97359607]
[1743492975669,0.2852085,610.59,608.65,1.97359607]
[1743492976081,0.32708599,611.46,608.65,1.97359607]
[1743492976273,0.30108789,611.45,608.65,1.97359607]
[1743492976470,0.28520616,610.58,608.65,1.97359607]
[1743492976668,0.32710203,611.43,608.65,1.97359607]
[1743492976873,0.30108631,611.42,608.65,1.97359607]
[1743492977174,0.28520967,610.57,608.65,1.97359607]
[1743492977370,0.32711808,611.4,608.65,1.97359607]
[1743492977568,0.28520616,610.56,608.65,1.97359607]
[1743492977972,0.32711808,611.4,608.65,1.97359607]
[1743492978273,0.28520616,610.55,608.65,1.97359607]
[1743492978672,0.32711808,611.4,608.65,1.97359607]
[1743492978975,0.28520616,610.54,608.65,1.97359607]
[1743492979274,0.32711808,611.4,608.65,1.97359607]
[1743492979475,0.28520733,610.53,608.65,1.97359607]
[1743492979776,2.50883066,611.34,608.65,1.97359607]
[1743492980076,0.28521317,610.52,608.65,1.97359607]
[1743492980375,0.32715554,611.33,608.65,1.97359607]
[1743492980674,0.3010881,611.32,608.65,1.97359607]
[1743492980875,0.62825434,611.31,608.65,1.97359607]
[1743492981076,0.6282597,611.3,608.65,1.97359607]
[1743492981276,0.62826505,611.29,608.65,1.97359607]
[1743492981471,0.6282704,611.28,608.65,1.97359607]
[1743492981672,0.62827575,611.27,608.65,1.97359607]
[1743492981975,0.62828111,611.26,608.65,1.97359607]
[1743492982173,0.62828646,611.25,608.65,1.97359607]
[1743492982370,0.62829181,611.24,608.65,1.97359607]
[1743492982569,0.62829717,611.23,608.65,1.97359607]
[1743492982775,0.62830252,611.22,608.65,1.97359607]
[1743492983072,0.62830787,611.21,608.65,1.97359607]
[1743492983275,0.62831323,611.2,608.65,1.97359607]
[1743492983475,0.62831858,611.19,608.65,1.97359607]
[1743492983676,0.3010881,611.18,608.65,1.97359607]
[1743492983877,0.32724119,611.17,608.65,1.97359607]
[1743492984077,0.3010881,611.16,608.65,1.97359607]